[Event "EYCC 2017"]
[Site "Mamaia"]
[Date "2017.09.06"]
[Round "2"]
[White "Luczak, Filip"]
[Black "Kirillov, Dmitry"]
[Result "1-0"]
[ECO "B83"]
[WhiteElo "1866"]
[BlackElo "2137"]
[Annotator "NA"]
[PlyCount "89"]
[EventDate "2017.??.??"]
[EventType "swiss"]
[EventCountry "ROU"]
[SourceTitle "playchess.com"]
[Source "ChessBase"]
[SourceQuality "1"]
[TimeControl "40/5400+30:1800+30"]

1. e4 {[%emt 0:00:00]} c5 {[%emt 0:00:05]} 2. Nf3 {[%emt 0:00:00]} e6 {[%emt 0:00:07]} 3. d4 {[%emt 0:00:00]} cxd4 {[%emt 0:00:05]} 4. Nxd4 {[%emt 0:00:07]} Nf6 {[%emt 0:00:04]} 5. Nc3 {[%emt 0:00:07]} d6 {[%emt 0:00:04]} 6. Be2 {[%emt 0:00:25]} Be7 {[%emt 0:00:08]} 7. Be3 {[%emt 0:00:25]} O-O {[%emt 0:00:14]} 8. f4 {[%emt 0:03:54]} Nc6 {[%emt 0:00:17]} 9. Qd2 {[%emt 0:01:11]} a6 {[%emt 0:10:11]} 10. O-O-O {[%emt 0:00:25]} Qc7 {[%emt 0:08:15]} 11. g4 {[%emt 0:01:02]} Nxd4 {[%emt 0:04:42]} 12. Bxd4 {[%emt 0:01:41]} b5 {[%emt 0:00:12]} 13. g5 {[%emt 0:02:18]} Nd7 {[%emt 0:00:08]} 14. f5 {[%emt 0:10:07]} b4 {[%emt 0:04:50]} 15. Nb1 {[%emt 0:00:55]} f6 {[%emt 0:10:35]} 16. Qxb4 {[%emt 0:14:13]} Bb7 {[%emt 0:06:24]} 17. Qb3 {[%emt 0:12:36]} Ne5 {[%emt 0:20:07]} 18. Qxe6+ {[%emt 0:01:53]} Kh8 {[%emt 0:00:07]} 19. Nc3 {[%emt 0:02:11]} Rfc8 {[%emt 0:05:48]} 20. Bxe5 {[%emt 0:04:08]} fxe5 {[%emt 0:02:46]} 21. f6 {[%emt 0:03:52]} gxf6 {[%emt 0:00:07]} 22. gxf6 {[%emt 0:00:05]} Bf8 {[%emt 0:00:09]} 23. Rhg1 {[%emt 0:01:08]} Bh6+ {[%emt 0:00:33]} 24. Kb1 {[%emt 0:01:07]} Bxe4 {[%emt 0:00:55]} 25. f7 {[%emt 0:00:13]} Bg7 {[%emt 0:02:39]} 26. f8=Q+ {[%emt 0:03:01]} Rxf8 {[%emt 0:00:39]} 27. Nxe4 {[%emt 0:00:16]} Rac8 {[%emt 0:00:33]} 28. Bd3 {[%emt 0:00:54]} Rcd8 {[%emt 0:00:33]} 29. Qd5 {[%emt 0:00:22]} Qf7 {[%emt 0:00:24]} 30. Qxf7 {[%emt 0:01:54]} Rxf7 {[%emt 0:00:13]} 31. Bc4 {[%emt 0:00:34]} Rf4 {[%emt 0:00:34]} 32. Nxd6 {[%emt 0:01:04]} Rd7 {[%emt 0:00:18]} 33. Nf7+ {[%emt 0:04:46]} Rdxf7 {[%emt 0:00:08]} 34. Bxf7 {[%emt 0:00:04]} Rxf7 {[%emt 0:00:08]} 35. Rge1 {[%emt 0:00:12]} h6 {[%emt 0:00:09]} 36. Re4 {[%emt 0:00:37]} Kh7 {[%emt 0:00:19]} 37. b4 {[%emt 0:00:48]} Kg6 {[%emt 0:00:08]} 38. c4 {[%emt 0:00:35]} Rf2 {[%emt 0:00:19]} 39. Rg4+ {[%emt 0:01:17]} Kf6 {[%emt 0:00:17]} 40. Rd6+ {[%emt 0:00:00]} Ke7 {[%emt 0:00:11]} 41. Rxa6 {[%emt 0:00:57]} Bf6 {[%emt 0:00:20]} 42. Rg6 {[%emt 0:01:26]} h5 {[%emt 0:00:09]} 43. Rgxf6 {[%emt 0:00:18]} Rxf6 {[%emt 0:00:07]} 44. Rxf6 {[%emt 0:00:05]} Kxf6 {[%emt 0:00:04]} 45. Kc2 {[%emt 0:00:06]} 1-0

[Event "EYCC 2017"]
[Site "Mamaia"]
[Date "2017.09.06"]
[Round "2"]
[White "Zhurova, Anna"]
[Black "Pipiras, Filipa Fortuna"]
[Result "1-0"]
[ECO "C11"]
[WhiteElo "1864"]
[BlackElo "1657"]
[Annotator "NA"]
[PlyCount "125"]
[EventDate "2017.??.??"]
[EventType "swiss"]
[EventCountry "ROU"]
[SourceTitle "playchess.com"]
[Source "ChessBase"]
[SourceQuality "1"]
[TimeControl "40/5400+30:1800+30"]

1. e4 {[%emt 0:00:00]} e6 {[%emt 0:00:35]} 2. d4 {[%emt 0:00:02]} d5 3. Nc3 Nf6 4. Bg5 dxe4 5. Nxe4 Be7 6. Bxf6 gxf6 7. c3 f5 {[%emt 0:13:39]} 8. Nd2 c5 9. Ngf3 O-O 10. Nb3 cxd4 11. Nbxd4 a6 12. Qd2 Nc6 13. Nxc6 Qxd2+ 14. Kxd2 bxc6 15. Kc2 c5 16. Rd1 Rd8 17. Rxd8+ Bxd8 18. Be2 f6 19. Nd2 Bc7 20. Nb3 Bd6 21. Rd1 Be7 22. Na5 Kf8 23. Rd3 Ra7 24. Nc6 Rc7 25. Nxe7 Kxe7 26. Rg3 Kf8 27. Bc4 Re7 28. Rd3 Rc7 29. Rd6 Ke7 30. Rb6 Bb7 31. Rxe6+ Kd7 32. f3 Bc8 33. Rxf6 Ke8 34. Bxa6 Bd7 35. Bc4 Bc8 36. Bb5+ Ke7 37. Rc6 Rxc6 38. Bxc6 Kd6 39. Bb5 Bb7 40. Kd3 h5 41. Ke3 Ke5 42. f4+ Kd6 43. g3 Bd5 44. a4 Bf7 45. b4 cxb4 46. cxb4 Kc7 47. Kd4 Kb6 48. Bd7 Bg6 49. Ke5 Bh7 50. Bxf5 Bg8 51. Be6 Bh7 52. f5 Ka6 53. f6 Bg6 54. f7 Bxf7 55. Bxf7 h4 56. gxh4 Kb6 57. a5+ Ka6 58. Bc4+ Ka7 59. Kd6 Ka8 60. Kc7 Ka7 61. b5 Ka8 62. a6 Ka7 63. b6+ 1-0

[Event "EYCC 2017"]
[Site "Mamaia"]
[Date "2017.09.06"]
[Round "2"]
[White "Katkov, Michelle"]
[Black "Eizaguerri Floris, Maria"]
[Result "0-1"]
[ECO "B22"]
[WhiteElo "1845"]
[BlackElo "2098"]
[Annotator "NA"]
[PlyCount "120"]
[EventDate "2017.??.??"]
[EventType "swiss"]
[EventCountry "ROU"]
[SourceTitle "playchess.com"]
[Source "ChessBase"]
[SourceQuality "1"]
[TimeControl "40/5400+30:1800+30"]

1. e4 {[%emt 0:00:00]} c5 {[%emt 0:00:12]} 2. c3 {[%emt 0:00:00]} b6 {[%emt 0:00:17]} 3. d4 {[%emt 0:00:14]} Bb7 {[%emt 0:00:20]} 4. Bd3 {[%emt 0:02:02]} Nf6 {[%emt 0:00:28]} 5. Qe2 {[%emt 0:02:10]} cxd4 {[%emt 0:00:29]} 6. cxd4 {[%emt 0:00:13]} Nc6 {[%emt 0:00:07]} 7. Nf3 {[%emt 0:02:05]} Nb4 {[%emt 0:00:29]} 8. Nc3 {[%emt 0:01:28]} Nxd3+ {[%emt 0:00:50]} 9. Qxd3 {[%emt 0:00:06]} Qc8 {[%emt 0:00:57]} 10. O-O {[%emt 0:01:57]} Ba6 {[%emt 0:04:51]} 11. Nb5 {[%emt 0:02:08]} Bxb5 {[%emt 0:12:00]} 12. Qxb5 {[%emt 0:00:13]} Nxe4 {[%emt 0:00:38]} 13. Bf4 {[%emt 0:08:20]} Qc6 {[%emt 0:18:45]} 14. Qd3 {[%emt 0:02:29]} e6 {[%emt 0:08:13]} 15. Rfe1 {[%emt 0:06:47]} Nf6 {[%emt 0:03:09]} 16. Rac1 {[%emt 0:02:25]} Qd5 {[%emt 0:01:35]} 17. Qa6 {[%emt 0:07:10]} Bd6 {[%emt 0:03:46]} 18. Rc8+ {[%emt 0:09:39]} Ke7 {[%emt 0:00:17]} 19. Rxh8 {[%emt 0:00:14]} Rxh8 {[%emt 0:00:12]} 20. Bxd6+ {[%emt 0:01:28]} Qxd6 {[%emt 0:00:16]} 21. Qxa7 {[%emt 0:01:05]} Rc8 {[%emt 0:04:41]} 22. Qa4 {[%emt 0:03:41]} Nd5 {[%emt 0:06:05]} 23. a3 {[%emt 0:03:25]} Nf4 {[%emt 0:08:59]} 24. Qb3 {[%emt 0:03:20]} h6 {[%emt 0:05:19]} 25. Qe3 {[%emt 0:08:07]} Rc2 {[%emt 0:03:50]} 26. g3 {[%emt 0:04:18]} Nd5 {[%emt 0:01:39]} 27. Qb3 {[%emt 0:01:56]} Rc8 {[%emt 0:03:00]} 28. Qd3 {[%emt 0:05:20]} Qc6 {[%emt 0:04:17]} 29. Qe4 {[%emt 0:04:47]} Nf6 {[%emt 0:03:09]} 30. Qxc6 {[%emt 0:00:37]} Rxc6 {[%emt 0:00:06]} 31. Kf1 {[%emt 0:00:47]} Nd5 {[%emt 0:02:14]} 32. Ne5 {[%emt 0:01:22]} Rc8 {[%emt 0:00:40]} 33. Re2 {[%emt 0:01:51]} f6 {[%emt 0:00:56]} 34. Nf3 {[%emt 0:00:37]} Kd6 {[%emt 0:01:01]} 35. Ke1 {[%emt 0:00:23]} Ne7 {[%emt 0:01:34]} 36. Kd2 {[%emt 0:01:38]} Kd5 {[%emt 0:00:41]} 37. Re3 {[%emt 0:02:24]} Nc6 {[%emt 0:02:05]} 38. Rc3 {[%emt 0:00:58]} g5 {[%emt 0:00:36]} 39. Ke3 {[%emt 0:03:14]} Re8 {[%emt 0:00:26]} 40. h3 {[%emt 0:00:00]} h5 {[%emt 0:00:29]} 41. Rb3 {[%emt 0:05:10]} Rb8 {[%emt 0:08:22]} 42. Rb5+ {[%emt 0:03:32]} Kd6 {[%emt 0:01:49]} 43. Nd2 {[%emt 0:03:05]} Ne7 {[%emt 0:02:00]} 44. a4 {[%emt 0:07:31]} Kc6 {[%emt 0:01:47]} 45. Ne4 {[%emt 0:02:31]} Nd5+ {[%emt 0:00:53]} 46. Kd3 {[%emt 0:01:39]} Ra8 {[%emt 0:02:57]} 47. Nc3 {[%emt 0:02:49]} Nxc3 {[%emt 0:02:03]} 48. bxc3 {[%emt 0:00:10]} Rxa4 {[%emt 0:00:09]} 49. Rb2 {[%emt 0:00:40]} b5 {[%emt 0:03:54]} 50. Ke4 {[%emt 0:04:30]} Ra1 {[%emt 0:02:48]} 51. Kf3 {[%emt 0:02:02]} Ra3 {[%emt 0:00:33]} 52. Rc2 {[%emt 0:00:35]} b4 {[%emt 0:01:16]} 53. Ke4 {[%emt 0:00:17]} Rxc3 {[%emt 0:02:23]} 54. Rxc3+ {[%emt 0:01:16]} bxc3 {[%emt 0:00:06]} 55. Kd3 {[%emt 0:00:04]} Kd5 {[%emt 0:00:22]} 56. f3 {[%emt 0:00:13]} c2 {[%emt 0:00:28]} 57. Kxc2 {[%emt 0:00:06]} Kxd4 {[%emt 0:00:07]} 58. Kd2 {[%emt 0:00:44]} d5 {[%emt 0:00:54]} 59. h4 {[%emt 0:01:20]} gxh4 {[%emt 0:00:22]} 60. gxh4 {[%emt 0:00:05]} e5 {[%emt 0:00:11]} 0-1

[Event "EYCC 2017"]
[Site "Mamaia"]
[Date "2017.09.06"]
[Round "2"]
[White "Guillo Longares, Cecilia"]
[Black "Krasteva, Beloslava"]
[Result "0-1"]
[ECO "D31"]
[WhiteElo "1810"]
[BlackElo "2048"]
[Annotator "NA"]
[PlyCount "68"]
[EventDate "2017.??.??"]
[EventType "swiss"]
[EventCountry "ROU"]
[SourceTitle "playchess.com"]
[Source "ChessBase"]
[SourceQuality "1"]
[TimeControl "40/5400+30:1800+30"]

1. d4 {[%emt 0:00:00]} d5 {[%emt 0:00:12]} 2. c4 {[%emt 0:00:00]} e6 {[%emt 0:00:13]} 3. Nc3 {[%emt 0:00:00]} Be7 {[%emt 0:00:26]} 4. Nf3 {[%emt 0:00:54]} Nf6 {[%emt 0:00:23]} 5. cxd5 {[%emt 0:00:09]} exd5 {[%emt 0:00:17]} 6. Bg5 {[%emt 0:00:16]} c6 {[%emt 0:00:35]} 7. Qc2 {[%emt 0:00:23]} g6 {[%emt 0:00:41]} 8. e3 {[%emt 0:08:17]} Bf5 {[%emt 0:00:50]} 9. Bd3 {[%emt 0:00:04]} Bxd3 {[%emt 0:00:27]} 10. Qxd3 {[%emt 0:00:04]} Nbd7 {[%emt 0:00:30]} 11. Bh6 {[%emt 0:03:17]} Ng4 {[%emt 0:01:27]} 12. Bg7 {[%emt 0:00:55]} Rg8 {[%emt 0:01:07]} 13. Be5 {[%emt 0:00:04]} Ngxe5 {[%emt 0:02:29]} 14. Nxe5 {[%emt 0:00:07]} Nxe5 {[%emt 0:07:09]} 15. dxe5 {[%emt 0:00:07]} f6 {[%emt 0:01:36]} 16. exf6 {[%emt 0:01:27]} Bxf6 {[%emt 0:00:07]} 17. O-O {[%emt 0:01:52]} Kf7 {[%emt 0:04:24]} 18. Ne2 {[%emt 0:02:23]} Re8 {[%emt 0:03:57]} 19. Qb3 {[%emt 0:02:12]} Qd7 {[%emt 0:05:10]} 20. Rfd1 {[%emt 0:04:06]} Kg7 {[%emt 0:02:12]} 21. Nf4 {[%emt 0:02:52]} Re7 {[%emt 0:04:29]} 22. Nd3 {[%emt 0:04:17]} Qf5 {[%emt 0:02:13]} 23. Nc5 {[%emt 0:03:18]} b6 {[%emt 0:10:22]} 24. Na6 {[%emt 0:04:25]} d4 {[%emt 0:04:26]} 25. exd4 {[%emt 0:14:30]} Re2 {[%emt 0:00:46]} 26. Qg3 {[%emt 0:01:28]} Rae8 {[%emt 0:06:34]} 27. Kf1 {[%emt 0:06:43]} Qb5 {[%emt 0:05:24]} 28. Kg1 {[%emt 0:05:23]} Qxa6 {[%emt 0:01:27]} 29. Qc7+ {[%emt 0:00:56]} R8e7 {[%emt 0:00:40]} 30. Qxc6 {[%emt 0:01:47]} Bxd4 {[%emt 0:01:12]} 31. Rf1 {[%emt 0:00:43]} Bxf2+ {[%emt 0:01:18]} 32. Kh1 {[%emt 0:00:02]} Qd3 {[%emt 0:03:14]} 33. Rad1 {[%emt 0:01:17]} Qxd1 {[%emt 0:01:46]} 34. Qc3+ {[%emt 0:00:06]} Qd4 {[%emt 0:00:13]} 0-1

[Event "EYCC 2017"]
[Site "Mamaia"]
[Date "2017.09.06"]
[Round "2"]
[White "Koubova, Anna Marie"]
[Black "Bulatova, Kamaliya"]
[Result "0-1"]
[ECO "E68"]
[WhiteElo "1805"]
[BlackElo "2014"]
[Annotator "NA"]
[PlyCount "74"]
[EventDate "2017.??.??"]
[EventType "swiss"]
[EventCountry "ROU"]
[SourceTitle "playchess.com"]
[Source "ChessBase"]
[SourceQuality "1"]
[TimeControl "40/5400+30:1800+30"]

1. d4 {[%emt 0:00:00]} Nf6 {[%emt 0:00:04]} 2. c4 {[%emt 0:00:00]} g6 {[%emt 0:00:03]} 3. g3 {[%emt 0:00:00]} Bg7 {[%emt 0:00:04]} 4. Bg2 {[%emt 0:00:00]} O-O {[%emt 0:00:12]} 5. Nc3 {[%emt 0:00:06]} d6 {[%emt 0:00:07]} 6. Nf3 {[%emt 0:00:09]} Nbd7 {[%emt 0:00:12]} 7. O-O {[%emt 0:00:13]} e5 {[%emt 0:00:04]} 8. e4 {[%emt 0:00:16]} a6 {[%emt 0:00:16]} 9. h3 {[%emt 0:00:28]} exd4 {[%emt 0:00:16]} 10. Nxd4 {[%emt 0:00:10]} Re8 {[%emt 0:01:16]} 11. Re1 {[%emt 0:00:29]} Rb8 {[%emt 0:01:41]} 12. Be3 {[%emt 0:01:06]} Ne5 {[%emt 0:03:25]} 13. b3 {[%emt 0:00:29]} c5 {[%emt 0:01:59]} 14. Nde2 {[%emt 0:00:20]} b5 {[%emt 0:09:10]} 15. f4 {[%emt 0:01:35]} Ned7 {[%emt 0:00:26]} 16. Qxd6 {[%emt 0:00:42]} b4 {[%emt 0:00:28]} 17. e5 {[%emt 0:00:41]} bxc3 {[%emt 0:04:22]} 18. Nxc3 {[%emt 0:01:49]} Bf8 {[%emt 0:04:41]} 19. Qd2 {[%emt 0:01:42]} Nh5 {[%emt 0:00:18]} 20. g4 {[%emt 0:00:36]} Ng7 {[%emt 0:00:21]} 21. Rad1 {[%emt 0:01:28]} Qc7 {[%emt 0:09:49]} 22. Nd5 {[%emt 0:25:17]} Qa7 {[%emt 0:00:11]} 23. f5 {[%emt 0:26:03]} Bb7 {[%emt 0:19:44]} 24. Bh6 {[%emt 0:06:47]} Bxd5 {[%emt 0:07:01]} 25. Bxd5 {[%emt 0:10:28]} Nxe5 {[%emt 0:09:32]} 26. f6 {[%emt 0:01:35]} Rbd8 {[%emt 0:08:17]} 27. fxg7 {[%emt 0:01:55]} Bxg7 {[%emt 0:04:21]} 28. Bxg7 {[%emt 0:00:07]} Kxg7 {[%emt 0:00:01]} 29. Qc3 {[%emt 0:02:43]} f6 {[%emt 0:04:57]} 30. g5 {[%emt 0:01:10]} Qe7 {[%emt 0:01:20]} 31. Rf1 {[%emt 0:01:48]} f5 {[%emt 0:03:23]} 32. h4 {[%emt 0:02:16]} h6 {[%emt 0:00:33]} 33. Rde1 {[%emt 0:00:59]} hxg5 {[%emt 0:00:14]} 34. Bc6 {[%emt 0:00:18]} Rd3 {[%emt 0:01:57]} 35. Qb2 {[%emt 0:01:14]} gxh4 {[%emt 0:01:17]} 36. Bxe8 {[%emt 0:02:30]} Qg5+ {[%emt 0:00:01]} 37. Kh2 {[%emt 0:00:13]} Rd2+ {[%emt 0:00:07]} 0-1

[Event "EYCC 2017"]
[Site "Mamaia"]
[Date "2017.09.06"]
[Round "2"]
[White "Rzali, Sabina"]
[Black "Srdanovic, Jovana"]
[Result "1/2-1/2"]
[ECO "B41"]
[WhiteElo "1792"]
[BlackElo "1994"]
[Annotator "NA"]
[PlyCount "79"]
[EventDate "2017.??.??"]
[EventType "swiss"]
[EventCountry "ROU"]
[SourceTitle "playchess.com"]
[Source "ChessBase"]
[SourceQuality "1"]
[TimeControl "40/5400+30:1800+30"]

1. e4 {[%emt 0:00:00]} c5 {[%emt 0:00:10]} 2. Nf3 {[%emt 0:00:00]} e6 {[%emt 0:00:38]} 3. d4 {[%emt 0:00:00]} cxd4 {[%emt 0:00:24]} 4. Nxd4 {[%emt 0:00:09]} a6 {[%emt 0:00:51]} 5. Be3 {[%emt 0:00:49]} Be7 {[%emt 0:00:57]} 6. Nc3 {[%emt 0:00:43]} d6 {[%emt 0:02:32]} 7. Be2 {[%emt 0:00:22]} Nf6 {[%emt 0:01:39]} 8. O-O {[%emt 0:00:45]} Qc7 {[%emt 0:03:11]} 9. Rb1 {[%emt 0:03:51]} O-O {[%emt 0:02:02]} 10. f4 {[%emt 0:03:39]} Nc6 {[%emt 0:07:24]} 11. Bf3 {[%emt 0:04:30]} Bd7 {[%emt 0:03:51]} 12. Kh1 {[%emt 0:05:00]} Rfc8 {[%emt 0:02:03]} 13. Nxc6 {[%emt 0:06:49]} Bxc6 {[%emt 0:00:36]} 14. Bd4 {[%emt 0:00:44]} e5 {[%emt 0:07:54]} 15. Be3 {[%emt 0:02:15]} b5 {[%emt 0:01:51]} 16. a3 {[%emt 0:22:22]} Qb7 {[%emt 0:01:06]} 17. Qd3 {[%emt 0:01:17]} a5 {[%emt 0:02:24]} 18. Nd5 {[%emt 0:02:40]} Bxd5 {[%emt 0:07:19]} 19. exd5 {[%emt 0:01:48]} exf4 {[%emt 0:00:57]} 20. Bxf4 {[%emt 0:00:24]} Rc4 {[%emt 0:00:24]} 21. Be3 {[%emt 0:04:19]} Rac8 {[%emt 0:01:46]} 22. c3 {[%emt 0:02:11]} Bd8 {[%emt 0:07:12]} 23. Rbd1 {[%emt 0:09:36]} b4 {[%emt 0:15:28]} 24. cxb4 {[%emt 0:06:15]} axb4 {[%emt 0:00:10]} 25. Qb3 {[%emt 0:02:01]} Nd7 {[%emt 0:09:12]} 26. Be2 {[%emt 0:01:27]} Rh4 {[%emt 0:02:22]} 27. Rf4 {[%emt 0:06:01]} Rb8 {[%emt 0:01:50]} 28. Qxb4 {[%emt 0:06:05]} Qxb4 {[%emt 0:00:24]} 29. axb4 {[%emt 0:01:00]} Rxb4 {[%emt 0:00:17]} 30. Rxh4 {[%emt 0:00:52]} Bxh4 {[%emt 0:00:21]} 31. Bd4 {[%emt 0:01:00]} Bf6 {[%emt 0:00:29]} 32. Bxf6 {[%emt 0:01:01]} Nxf6 {[%emt 0:00:06]} 33. Rd2 {[%emt 0:00:24]} Ne4 {[%emt 0:00:11]} 34. Rc2 {[%emt 0:00:17]} Nc5 {[%emt 0:00:15]} 35. Bc4 {[%emt 0:00:59]} g6 {[%emt 0:02:32]} 36. Kg1 {[%emt 0:02:57]} Ne4 {[%emt 0:00:43]} 37. Bd3 {[%emt 0:02:09]} Nf6 {[%emt 0:03:39]} 38. Bc4 {[%emt 0:00:42]} Ng4 {[%emt 0:00:07]} 39. b3 {[%emt 0:00:59]} Ne3 {[%emt 0:01:30]} 40. Rc3 {[%emt 0:00:00]} 1/2-1/2

[Event "EYCC 2017"]
[Site "Mamaia"]
[Date "2017.09.06"]
[Round "2"]
[White "Ciolacu, Alessia-Mihaela"]
[Black "Jarocka, Liwia"]
[Result "1-0"]
[ECO "E73"]
[WhiteElo "1787"]
[BlackElo "1970"]
[Annotator "NA"]
[PlyCount "91"]
[EventDate "2017.??.??"]
[EventType "swiss"]
[EventCountry "ROU"]
[SourceTitle "playchess.com"]
[Source "ChessBase"]
[SourceQuality "1"]
[TimeControl "40/5400+30:1800+30"]

1. d4 {[%emt 0:00:00]} Nf6 {[%emt 0:00:08]} 2. c4 {[%emt 0:00:00]} g6 {[%emt 0:00:10]} 3. Nc3 {[%emt 0:00:03]} Bg7 {[%emt 0:00:11]} 4. e4 {[%emt 0:00:11]} d6 {[%emt 0:00:13]} 5. Be2 {[%emt 0:00:24]} O-O {[%emt 0:00:47]} 6. Be3 {[%emt 0:00:18]} c6 {[%emt 0:00:32]} 7. g4 {[%emt 0:00:54]} d5 $14 {[%emt 0:01:03]} (7... c5 $5) 8. cxd5 {[%emt 0:01:15]} cxd5 {[%emt 0:00:41]} 9. e5 {[%emt 0:00:26]} Ne4 {[%emt 0:07:52]} 10. h4 {[%emt 0:05:01]} Nxc3 {[%emt 0:12:03]} 11. bxc3 {[%emt 0:00:07]} f6 {[%emt 0:00:18]} 12. f4 {[%emt 0:12:07]} Nc6 {[%emt 0:04:10]} 13. h5 {[%emt 0:12:30]} Rf7 {[%emt 0:22:20]} 14. hxg6 {[%emt 0:06:12]} hxg6 {[%emt 0:00:01]} 15. Bd3 {[%emt 0:00:47]} f5 {[%emt 0:01:14]} 16. Nf3 {[%emt 0:02:01]} e6 {[%emt 0:03:17]} 17. Ng5 {[%emt 0:04:22]} Rc7 {[%emt 0:00:47]} 18. Qe2 {[%emt 0:03:00]} Ne7 {[%emt 0:02:02]} 19. Bd2 {[%emt 0:03:08]} Kf8 {[%emt 0:03:43]} 20. Nh7+ {[%emt 0:03:56]} Kf7 {[%emt 0:00:35]} 21. Qh2 {[%emt 0:01:53]} Ng8 {[%emt 0:00:37]} 22. Ng5+ {[%emt 0:11:09]} Kf8 {[%emt 0:00:29]} 23. Qh4 {[%emt 0:00:36]} Qe7 {[%emt 0:03:26]} 24. Qh7 {[%emt 0:01:30]} Qe8 {[%emt 0:02:15]} 25. c4 {[%emt 0:02:33]} a5 {[%emt 0:08:33]} 26. Bc1 {[%emt 0:00:55]} b5 {[%emt 0:09:39]} 27. cxb5 {[%emt 0:01:39]} Rc3 {[%emt 0:00:58]} 28. Kd2 {[%emt 0:00:48]} Rxd3+ {[%emt 0:01:22]} 29. Kxd3 {[%emt 0:00:08]} Qxb5+ {[%emt 0:00:12]} 30. Ke3 {[%emt 0:00:30]} Qb4 {[%emt 0:00:49]} 31. Bd2 {[%emt 0:01:21]} Qa3+ {[%emt 0:00:16]} 32. Kf2 {[%emt 0:00:17]} Qb2 {[%emt 0:01:59]} 33. Rad1 {[%emt 0:03:46]} Ne7 {[%emt 0:01:20]} 34. gxf5 {[%emt 0:04:00]} exf5 {[%emt 0:01:46]} 35. Qh3 {[%emt 0:01:18]} Qxd4+ {[%emt 0:01:25]} 36. Qe3 {[%emt 0:01:20]} Qc4 {[%emt 0:00:57]} 37. Rc1 {[%emt 0:03:00]} Qxa2 {[%emt 0:00:52]} 38. Rc7 {[%emt 0:00:42]} Qb2 {[%emt 0:01:35]} 39. Nh7+ {[%emt 0:07:13]} Ke8 {[%emt 0:01:57]} 40. Nf6+ {[%emt 0:00:00]} Kf8 {[%emt 0:01:22]} 41. Rb1 {[%emt 0:12:49]} Qa2 {[%emt 0:11:00]} 42. Rxe7 {[%emt 0:02:45]} Kxe7 {[%emt 0:09:00]} 43. Qc5+ {[%emt 0:00:08]} Kf7 {[%emt 0:02:40]} 44. Qc7+ {[%emt 0:00:13]} Kf8 {[%emt 0:00:26]} 45. Qd8+ {[%emt 0:00:06]} Kf7 {[%emt 0:00:15]} 46. Qe8# {[%emt 0:00:06]} 1-0

[Event "EYCC 2017"]
[Site "Mamaia"]
[Date "2017.09.06"]
[Round "2"]
[White "Dubovyk, Anastasiia"]
[Black "Cherepanova, Evita"]
[Result "1-0"]
[ECO "C02"]
[WhiteElo "1785"]
[BlackElo "1629"]
[Annotator "NA"]
[PlyCount "149"]
[EventDate "2017.??.??"]
[EventType "swiss"]
[EventCountry "ROU"]
[SourceTitle "playchess.com"]
[Source "ChessBase"]
[SourceQuality "1"]
[TimeControl "40/5400+30:1800+30"]

1. e4 {[%emt 0:00:00]} e6 {[%emt 0:00:03]} 2. d4 {[%emt 0:00:00]} d5 {[%emt 0:00:04]} 3. e5 {[%emt 0:00:00]} c5 {[%emt 0:00:05]} 4. c3 {[%emt 0:00:00]} Nc6 {[%emt 0:00:06]} 5. Nf3 {[%emt 0:00:01]} Bd7 {[%emt 0:00:03]} 6. a3 {[%emt 0:00:26]} c4 {[%emt 0:00:03]} 7. Nbd2 {[%emt 0:04:11]} Na5 {[%emt 0:01:01]} 8. Be2 {[%emt 0:15:04]} Ne7 {[%emt 0:00:32]} 9. O-O {[%emt 0:01:35]} Nc8 {[%emt 0:01:33]} 10. Qe1 {[%emt 0:11:06]} Nb6 {[%emt 0:02:47]} 11. Bd1 {[%emt 0:02:36]} Qc7 {[%emt 0:01:27]} 12. Kh1 {[%emt 0:03:54]} O-O-O {[%emt 0:00:35]} 13. Bc2 {[%emt 0:10:58]} h6 {[%emt 0:03:27]} 14. Ng1 {[%emt 0:04:28]} f5 {[%emt 0:02:04]} 15. g3 {[%emt 0:11:58]} g5 {[%emt 0:01:14]} 16. Kg2 {[%emt 0:03:03]} Be8 {[%emt 0:01:26]} 17. Ne2 {[%emt 0:05:07]} Bh5 {[%emt 0:02:47]} 18. Rh1 {[%emt 0:04:51]} Qf7 {[%emt 0:03:35]} 19. b4 {[%emt 0:10:03]} cxb3 {[%emt 0:01:06]} 20. Nxb3 {[%emt 0:00:55]} Nac4 {[%emt 0:00:20]} 21. a4 {[%emt 0:02:58]} f4 {[%emt 0:04:37]} 22. Ng1 {[%emt 0:04:53]} Bg6 {[%emt 0:06:13]} 23. Qd1 {[%emt 0:01:20]} Be7 {[%emt 0:03:53]} 24. a5 {[%emt 0:00:28]} Nd7 {[%emt 0:00:19]} 25. Nd2 {[%emt 0:00:47]} fxg3 {[%emt 0:01:53]} 26. hxg3 {[%emt 0:01:04]} Rdf8 {[%emt 0:00:45]} 27. Nh3 {[%emt 0:00:51]} Bh5 {[%emt 0:02:11]} 28. g4 {[%emt 0:00:33]} Bg6 {[%emt 0:00:43]} 29. Bxg6 {[%emt 0:00:26]} Qxg6 {[%emt 0:00:08]} 30. Nxc4 {[%emt 0:00:14]} dxc4 {[%emt 0:01:35]} 31. Qe2 {[%emt 0:00:17]} Kb8 {[%emt 0:00:55]} 32. Ba3 {[%emt 0:00:31]} Bxa3 {[%emt 0:00:22]} 33. Rxa3 {[%emt 0:00:06]} h5 {[%emt 0:03:07]} 34. f3 {[%emt 0:01:01]} hxg4 {[%emt 0:00:44]} 35. fxg4 {[%emt 0:00:07]} Rh4 {[%emt 0:00:37]} 36. Raa1 {[%emt 0:01:12]} Rc8 {[%emt 0:13:08]} 37. Rad1 {[%emt 0:00:39]} Nf8 {[%emt 0:01:29]} 38. Rd2 {[%emt 0:00:30]} Qh6 {[%emt 0:02:43]} 39. Rb2 {[%emt 0:00:38]} Ng6 {[%emt 0:00:36]} 40. Qf3 {[%emt 0:00:00]} Rc7 {[%emt 0:03:52]} 41. Kg1 {[%emt 0:18:23]} Rh7 {[%emt 0:01:22]} 42. a6 {[%emt 0:09:05]} b6 {[%emt 0:01:05]} 43. Nf2 {[%emt 0:03:09]} Nf4 {[%emt 0:05:05]} 44. Qc6 {[%emt 0:00:57]} Rxh1+ {[%emt 0:03:28]} 45. Qxh1 {[%emt 0:01:26]} Qxh1+ {[%emt 0:00:13]} 46. Nxh1 {[%emt 0:00:06]} Nd5 {[%emt 0:00:28]} 47. Rf2 {[%emt 0:00:52]} Nxc3 {[%emt 0:00:58]} 48. Rf8+ {[%emt 0:00:26]} Kc7 {[%emt 0:00:18]} 49. Ra8 {[%emt 0:00:36]} Kc6 {[%emt 0:00:06]} 50. Nf2 {[%emt 0:00:34]} Ne2+ {[%emt 0:02:32]} 51. Kf1 {[%emt 0:00:22]} Nxd4 {[%emt 0:00:39]} 52. Ne4 {[%emt 0:00:26]} Kd5 {[%emt 0:00:53]} 53. Nf6+ {[%emt 0:00:25]} Kxe5 {[%emt 0:00:14]} 54. Nxh7 {[%emt 0:00:06]} Nc6 {[%emt 0:02:28]} 55. Nxg5 {[%emt 0:00:57]} b5 {[%emt 0:02:44]} 56. Rc8 {[%emt 0:00:31]} Kd5 {[%emt 0:00:58]} 57. Nf3 {[%emt 0:00:32]} b4 {[%emt 0:00:13]} 58. Ke2 {[%emt 0:00:32]} c3 {[%emt 0:00:39]} 59. Kd3 {[%emt 0:00:21]} e5 {[%emt 0:02:16]} 60. Re8 {[%emt 0:00:22]} e4+ {[%emt 0:02:08]} 61. Rxe4 {[%emt 0:00:13]} c2 {[%emt 0:02:04]} 62. Re1 {[%emt 0:00:36]} b3 {[%emt 0:06:12]} 63. Kc3 {[%emt 0:00:36]} Nb4 {[%emt 0:04:29]} 64. Kxb3 {[%emt 0:00:41]} Nd3 {[%emt 0:00:26]} 65. Kxc2 {[%emt 0:00:21]} Nb4+ {[%emt 0:00:55]} 66. Kc3 {[%emt 0:00:27]} Nxa6 {[%emt 0:00:05]} 67. g5 {[%emt 0:00:24]} Nc7 {[%emt 0:00:12]} 68. g6 {[%emt 0:00:13]} Ne6 {[%emt 0:00:30]} 69. Ng5 {[%emt 0:01:05]} Ng7 {[%emt 0:01:06]} 70. Re7 {[%emt 0:00:26]} Nf5 {[%emt 0:00:12]} 71. Rf7 {[%emt 0:00:11]} Nh6 {[%emt 0:00:18]} 72. g7 {[%emt 0:00:12]} a5 {[%emt 0:00:42]} 73. Rf6 {[%emt 0:00:48]} Ng8 {[%emt 0:00:17]} 74. Rf8 {[%emt 0:00:15]} Nh6 {[%emt 0:00:21]} 75. Rh8 {[%emt 0:00:21]} 1-0